{"text_format":"1","workbook":"xlsx","n_sheets":1,"sheets":["Sample Submission Form"],"not_rendered":{"charts":0,"images":1,"macros":1,"external_links":0,"defined_names":24,"comments":0,"pivot_tables":0},"unopened":[],"bounds":{"document_bytes":16777216,"sheet_cells":100000,"rows_first":2000,"rows_last":500,"rows_between":2000,"halvings":0,"cell_chars":16384,"cell_head_chars":4096},"cells_cut":0,"cells_raw":0,"read":"whole","date_system":"1900"}

{"sheet":"Sample Submission Form","index":0,"n_rows":75,"n_cols":31,"rows_kept":75,"cut":false,"hidden":false,"merged":[[41,9,41,10],[42,9,42,10],[43,9,43,10],[36,9,36,10],[37,9,37,10],[38,9,38,10],[39,9,39,10],[40,9,40,10],[31,9,31,10],[32,9,32,10],[33,9,33,10],[34,9,34,10],[35,9,35,10],[14,19,14,21],[16,19,16,21],[14,22,14,24],[16,5,16,7],[10,5,10,9],[10,15,10,16],[12,5,12,9],[12,15,12,16],[14,5,14,9],[47,2,47,5],[47,8,47,12],[48,2,48,5],[48,8,48,12],[48,15,48,16],[47,15,47,16],[27,9,27,10],[28,9,28,10],[29,9,29,10],[30,9,30,10],[18,9,18,10],[19,9,19,10],[20,9,20,10],[21,9,21,10],[22,9,22,10],[23,9,23,10],[24,9,24,10],[25,9,25,10],[26,9,26,10],[59,8,59,12],[49,2,49,5],[49,8,49,12],[49,15,49,16],[52,2,52,5],[52,8,52,12],[52,15,52,16],[50,2,50,5],[50,8,50,12],[50,15,50,16],[51,2,51,5],[51,8,51,12],[51,15,51,16],[59,15,59,16],[67,5,67,16],[53,2,53,5],[53,8,53,12],[53,15,53,16],[60,2,60,5],[60,8,60,12],[54,2,54,5],[54,8,54,12],[54,15,54,16],[55,2,55,5],[55,8,55,12],[55,15,55,16],[56,2,56,5],[56,8,56,12],[56,15,56,16],[59,2,59,5],[60,15,60,16],[61,15,61,16],[62,15,62,16],[69,5,69,16],[62,2,62,5],[62,8,62,12],[63,2,63,5],[63,8,63,12],[64,2,64,5],[64,8,64,12],[64,15,64,16],[65,15,65,16],[61,2,61,5],[61,8,61,12],[65,2,65,5],[65,8,65,12]]}
[null,null,null,null,null,null,null,null,null,null,null,null,null,null,null,null,null,null,null,null,null,null,null,null,null,null,null,null,null,"no. of selected tests:",{"$f":"COUNTA(B48:B57,B60:B66,H48:H57,H60:H66,O48:O57,O60:O66)","v":0}]
[null,null,null,null,null,null,null,null,null,null,null,null,null,null,null,null,null,null,null,null,null,null,null,null,null,null,null,null,null,"Order number",{"$f":"UPPER(TRIM(LEFT(CompanyName,5)))&TEXT(TODAY(),\"MMDD\")","v":"0114"}]
[null,null,null,null,null,null,null,null,null,null,null,null,null,null,null,null,null,null,null,null,null,null,null,null,null,null,null,null,null,"Next Order Number",{"$f":"AE4+1","v":1}]
[null,null,null,null,null,null,null,null,null,null,null,null,null,null,null,null,"Customer Order #",null,null,null,null,null,null,null,null,null,null,null,null,"Last order number",0]
[null,"      Sample Submission Form",null,null,null,null,null,null,null,null,null,null,null,null,null,{"$f":"IF(CompanyName=\"\",\"\",\"Order# \")","v":""},null,null,null,null,null,null,null,null,null,null,null,null,null,"valid print options:","y"]
[]
[null,"Please complete this form for each individual sample or each group of samples requiring the same test",null,null,null,null,null,null,null,null,null,null,null,null,null,null,null,null,null,null,null,null,null,null,null,null,null,null,null,"ü","n"]
[null,"Fita includes free pickup in Adelaide Metro as a service to our customers, however, samples can be delivered to the office along with this form.",null,null,null,null,null,null,null,null,null,null,null,null,null,null,null,null,null,null,null,null,null,null,null,null,null,null,null,"todaysdate",{"$f":"TODAY()","v":"2024-01-14"}]
[null,"Delivery address for Samples:",null,null,null,null,null,"Unit 6b, 6-12 Stanbel Road \nSalisbury Plain  SA  5109 ",null,null,null,null,null,null,null,null,null,null,null,null,null,null,null,null,null,null,null,null,null,"dateempty",{"$f":"IF(CollectionDate=\"\",\"yes\",\"no\")","v":"yes"}]
[]
[null,"Your Company Name:",null,null,null,null,null,null,null,null,null,null,"Pickup Address:",null,null,null,null,null,null,null,null,null,null,null,null,null,null,null,null,"next sample row",{"$f":"IFERROR(MATCH(1,AE20:AE31,0)+ROW($C$19),0)","v":20}]
[]
[null,"Contact Name:",null,null,null,null,null,null,null,null,null,null,null,null,null,null,null,null,null,null,null,null,null,null,null,null,null,null,null,"Show Selections?"]
[]
[null,"Contact email",null,null,null,null,null,null,null,null,null,null,"Date for Collection:",null,null,null,null,null,null,"The green cells below may be changed any time",null,null,"Click on a cell  to copy it to the sample description",null,null,null,null,null,null,"Number of display lines",20]
[]
[null,"Contact Phone No.",null,null,null,null,null,null,null,null,null,null,"Time ready for pickup:",null,null,null,null,null,null,"By entering your own sample details, you can select them each time you use the form"]
[]
[null,null,"Sample Description",null,null,null,null,null,null,"Sample Date",null,null,"Best Before Date",null,"Batch / Comments",null,null,null,null,"Raw Ingredients","Finished Product 1","Finished Product 2","Finished Product 3","Environmental"]
[null,1,null,null,null,null,null,null,null,null,null,null,null,null,null,null,null,null,null,"Ingredient 1","Product 1",null,null,"Surface 1",null,null,null,null,null,null,{"$f":"IF(C20=\"\",1,\"\")","v":1}]
[null,2,null,null,null,null,null,null,null,null,null,null,null,null,null,null,null,null,null,"Ingredient 2","Product 2",null,null,"Surface 2",null,null,null,null,null,null,1]
[null,3,null,null,null,null,null,null,null,null,null,null,null,null,null,null,null,null,null,"Ingredient 3","Product 3",null,null,"Surface 3",null,null,null,null,null,null,1]
[null,4,null,null,null,null,null,null,null,null,null,null,null,null,null,null,null,null,null,"Ingredient 4","Product 4",null,null,"Surface 4",null,null,null,null,null,null,1]
[null,5,null,null,null,null,null,null,null,null,null,null,null,null,null,null,null,null,null,"Ingredient 5","Product 5",null,null,"Surface 5",null,null,null,null,null,null,1]
[null,6,null,null,null,null,null,null,null,null,null,null,null,null,null,null,null,null,null,null,null,null,null,null,null,null,null,null,null,null,1]
[null,7,null,null,null,null,null,null,null,null,null,null,null,null,null,null,null,null,null,null,null,null,null,null,null,null,null,null,null,null,1]
[null,8,null,null,null,null,null,null,null,null,null,null,null,null,null,null,null,null,null,null,null,null,null,null,null,null,null,null,null,null,1]
[null,9,null,null,null,null,null,null,null,null,null,null,null,null,null,null,null,null,null,null,null,null,null,null,null,null,null,null,null,null,1]
[null,10,null,null,null,null,null,null,null,null,null,null,null,null,null,null,null,null,null,null,null,null,null,null,null,null,null,null,null,null,1]
[null,11,null,null,null,null,null,null,null,null,null,null,null,null,null,null,null,null,null,null,null,null,null,null,null,null,null,null,null,null,1]
[null,12,null,null,null,null,null,null,null,null,null,null,null,null,null,null,null,null,null,null,null,null,null,null,null,null,null,null,null,null,1]
[null,13,null,null,null,null,null,null,null,null,null,null,null,null,null,null,null,null,null,null,null,null,null,null,null,null,null,null,null,null,{"$f":"IF(C32=\"\",1,\"\")","v":1}]
[null,14,null,null,null,null,null,null,null,null,null,null,null,null,null,null,null,null,null,null,null,null,null,null,null,null,null,null,null,null,1]
[null,15,null,null,null,null,null,null,null,null,null,null,null,null,null,null,null,null,null,null,null,null,null,null,null,null,null,null,null,null,1]
[null,16,null,null,null,null,null,null,null,null,null,null,null,null,null,null,null,null,null,null,null,null,null,null,null,null,null,null,null,null,1]
[null,17,null,null,null,null,null,null,null,null,null,null,null,null,null,null,null,null,null,null,null,null,null,null,null,null,null,null,null,null,1]
[null,18,null,null,null,null,null,null,null,null,null,null,null,null,null,null,null,null,null,null,null,null,null,null,null,null,null,null,null,null,1]
[null,19,null,null,null,null,null,null,null,null,null,null,null,null,null,null,null,null,null,null,null,null,null,null,null,null,null,null,null,null,1]
[null,20,null,null,null,null,null,null,null,null,null,null,null,null,null,null,null,null,null,null,null,null,null,null,null,null,null,null,null,null,1]
[null,21,null,null,null,null,null,null,null,null,null,null,null,null,null,null,null,null,null,null,null,null,null,null,null,null,null,null,null,null,1]
[null,22,null,null,null,null,null,null,null,null,null,null,null,null,null,null,null,null,null,null,null,null,null,null,null,null,null,null,null,null,1]
[null,23,null,null,null,null,null,null,null,null,null,null,null,null,null,null,null,null,null,null,null,null,null,null,null,null,null,null,null,null,1]
[null,24,null,null,null,null,null,null,null,null,null,null,null,null,null,null,null,null,null,null,null,null,null,null,null,null,null,null,null,null,1]
[null,25,null,null,null,null,null,null,null,null,null,null,null,null,null,null,null,null,null,null,null,null,null,null,null,null,null,null,null,null,{"$f":"IF(C44=\"\",1,\"\")","v":1}]
[]
[null,"Select the tests required:"]
[null,"Microbiological Examination"]
[null,null,"Standard Plate count ",null,null,null,null,null,"Bacillus cereus",null,null,null,null,null,null,"Water - Coliform Filtration"]
[null,null,"Total Viable Count PF",null,null,null,null,null,null,null,null,null,null,null,null,"Water - E.coli Filtration"]
[null,null,"Anaerobic plate count",null,null,null,null,null,"Enterobacteriaceae",null,null,null,null,null,null,"Water - heterotropic count 22°"]
[null,null,"E. coli     MPN (AS 5013.15 LOR<3) ",null,null,null,null,null,null,null,null,null,null,null,null,"Water - heterotropic count 36°"]
[null,null,"Coliform MPN (AS 5013.15 LOR <3)",null,null,null,null,null,"Staphylococcus aureus (AOAC 2003.11)",null,null,null,null,null,null,"Water - ThermoTolerant Coliforms"]
[null,null,"E. coli  PF  (AOAC 991.14 (LOR <10)",null,null,null,null,null,"Coag Positive Staphylococcus sp (AS)"]
[null,null,"Coliform PF (AOAC 991.14 LOR <10)",null,null,null,null,null,null,null,null,null,null,null,null,"Water - Enterococci"]
[null,null,"Salmonella",null,null,null,null,null,"Anaerobic plate count",null,null,null,null,null,null,"Pseudomonas Species"]
[null,null,"Listeria species",null,null,null,null,null,"Campylobacter"]
[null,null,"Yeast & Moulds",null,null,null,null,null,"Clostridium Perfringens",null,null,null,null,null,null,"Lactic Acid Bacteria"]
[]
[null,"Chemical Analysis"]
[null,null,"pH",null,null,null,null,null,"Nutritional Information Panel",null,null,null,null,null,null,"Meat Content"]
[null,null,"Pesticide Residue C3",null,null,null,null,null,"NIP - with Dietary fibre",null,null,null,null,null,null,"Protein"]
[null,null,"Pesticide Residue C6 ",null,null,null,null,null,"Gluten",null,null,null,null,null,null,"Water Activity"]
[null,null,"Sodium",null,null,null,null,null,"Peanut",null,null,null,null,null,null,"Moisture"]
[null,null,"Sulphite",null,null,null,null,null,"Milk"]
[null,null,"Nitrates / Nitrites",null,null,null,null,null,"Egg",null,null,null,null,null,null,"Trace Elements (List requirements below)"]
[null,null,null,null,null,null,null,null,"Aflatoxins",null,null,null,null,null,null,"Other (Details Below)"]
[]
[null,"Additional Notes: "]
[]
[]
[null,"Office use only"]
[null,"Date of receival:",null,null,null,null,null,"Received By:",null,null,null,null,null,null,null,"Time Received:"]
[null,"Notes:",null,null,null,null,null,null,null,null,null,null,null,null,null,"Temperature:"]
[]
[null,"Form: FORM01",null,null,null,"print order ?",null,"n",null,null,null,null,"Authorised by:  DD",null,null,null,"2023-11-08"]